Cogmind - Beta 9.4 @@@ ROGUE MODE // 2020.03.16 @ 19:59:23 Player: dkudriavtsev Result: Destroyed by D-53 Grenadier with Mini Grenade Launcher Performance ------------- Evolutions (1) 500 Regions Visited (3) 600 Robots Destroyed (30) 150 Value Destroyed (846) 846 Prototype IDs (1) 20 Alien Tech Used (0) 0 Bonus (0) 0 TOTAL SCORE: 2116 Bonus ------- None Cogmind --------- Core Integrity 0/400 Matter 206/300 Energy 335/400 System Corruption 0% Temperature Cool (0) Movement Treading (160) Location -9/Mines Parts ------- > --- POWER (1) -------- (None) > --- PROPULSION (3) --- Improved Treads Improved Treads > --- UTILITY (3) ------ Large Storage Unit Large Battery Advanced Targeting Computer > --- WEAPON (2) ------- (None) > --- INVENTORY (10) --- Ion Engine Aluminum Leg Large Storage Unit Light Cannon Hammer Peak State ------------ > --- POWER ------------ Ion Engine > --- PROPULSION ------- Aluminum Leg Aluminum Leg Aluminum Leg > --- UTILITY ---------- Large Storage Unit Improved Targeting Computer Advanced Targeting Computer > --- WEAPON ----------- Heavy Particle Cannon Minigun > --- INVENTORY -------- Ion Engine Improved Treads Improved Treads Aluminum Leg Large Storage Unit Large Battery Heavy Particle Cannon Light Cannon Mini Grenade Launcher Hammer [Rating: 17] Favorites ----------- Power Ion Engine Engine Ion Engine Propulsion Aluminum Leg Treads Improved Treads Leg Aluminum Leg Wheel Wheel Flight Unit Improved Flight Unit Utility Large Storage Unit Storage Large Storage Unit Processor Improved Targeting Computer Protection Medium Armor Plating Weapon Assault Rifle Energy Gun Particle Gun Energy Cannon Heavy Particle Cannon Ballistic Gun Assault Rifle Ballistic Cannon Light Cannon Launcher Grenade Launcher Impact Weapon Hammer Build | -11 -10 -9 -9 ------- Run | Scr Mat Mat Min Slots Evolved 2 | . . 2 . Power . | . . . . Propulsion 1 | . . 1 . Utility 1 | . . 1 . Weapon . | . . . . Parts Attached 40 | 7 6 20 7 Power 4 | 1 . 3 . Engine 4 | 1 . 3 . Core . | . . . . Reactor . | . . . . Propulsion 13 | 3 2 5 3 Treads 2 | . . . 2 Leg 9 | 2 2 4 1 Wheel 1 | 1 . . . Hover . | . . . . Flight 1 | . . 1 . Utility 7 | 1 3 3 . Device . | . . . . Storage 3 | 1 1 1 . Processor 2 | . . 2 . Hackware . | . . . . Protection 2 | . 2 . . Artifact . | . . . . Weapon 16 | 2 1 9 4 Energy Gun 3 | 1 . 2 . Energy Cannon 3 | . . 1 2 Ballistic Gun 4 | 1 . 2 1 Ballistic Cannon 1 | . . 1 . Launcher 4 | . 1 2 1 Special Weapon . | . . . . Impact Weapon 1 | . . 1 . Slashing Weapon . | . . . . Piercing Weapon . | . . . . Special Melee Weapon . | . . . . Unidentified Prototypes 1 | . . 1 . Parts Lost 17 | . 1 7 9 Power 2 | . . 1 1 Propulsion 7 | . 1 3 3 Utility 1 | . . 1 . Weapon 7 | . . 2 5 Highest Loss Streak 9 | . 1 7 9 Average Slot Usage (%) 91 | . 94 89 92 Engine 10 | . 14 9 9 Leg 27 | . 27 27 27 Storage 13 | . 14 12 22 Processor 6 | . . 11 11 Protection 7 | . 9 7 . Energy Gun 2 | . . 4 . Energy Cannon 1 | . . 1 11 Ballistic Gun 8 | . 14 6 1 Launcher 8 | . 13 5 7 Impact Weapon 1 | . . 2 . Naked Turns . | . . . . Heaviest Build 35 | 13 33 35 35 Greatest Support 46 | 20 20 30 46 Greatest Overweight (x) 6 | 1 3 6 1 Average Overweight (x) . | . . . . Largest Inventory Capacity 12 | 6 12 10 10 Average Capacity 9 | 5 9 10 10 Most Carried 10 | 6 10 10 10 Average Carried 9 | 3 9 9 9 Final Capacity 10 | 6 10 10 10 Final Carried 10 | 6 10 10 5 Class Distribution -------------------- 94% | Mutant 5% | Scavenger-Mutant Dominant Class ---------------- Mutant | -10/Materials Mutant | -9/Materials Mutant | -9/Mines Resources | -11 -10 -9 -9 ----------- Run | Scr Mat Mat Min Matter Collected 773 | 233 186 184 170 Remotely . | . . . . Salvage Created 697 | . 202 337 158 Parts 42 | . 13 24 5 Haulers Intercepted 1 | . 1 . . Recyclers Shooed 1 | . . 1 . Parts Field Recycled . | . . . . Retrieved Matter . | . . . . Parts Self-Destructed . | . . . . Prevented . | . . . . Kills | -11 -10 -9 -9 ------- Run | Scr Mat Mat Min Combat Hostiles Destroyed 26 | . 7 14 5 Guns 10 | . 2 7 1 Cannons 5 | . . 4 1 AOE 11 | . 5 3 3 Classes Destroyed 7 | . 4 2 1 Worker 1 | . 1 . . Hauler 1 | . 1 . . Recycler 1 | . . . 1 Watcher 1 | . 1 . . Swarmer 7 | . . 4 3 Grunt 17 | . 7 8 2 Sentry 2 | . . 2 . Best Kill Streak 6 | . 4 4 6 Combat Bots Only 5 | . 2 4 5 Max Kills in Single Turn 3 | . 3 2 2 Gunslinging . | . . . . Exploded 2 | . 1 2 1 Melee . | . . . . Uniques/NPCs Destroyed . | . . . . Combat | -11 -10 -9 -9 -------- Run | Scr Mat Mat Min Damage Taken 2368 | . 227 1030 1111 Core 418 | . 12 234 172 Absorbed by Shields . | . . . . Core Remaining (%) 97 | 100 95 . . Volleys Fired 67 | . 13 44 10 Largest 2 | . 2 2 2 Hottest 150 | . 50 130 150 Shots Fired 86 | . 15 52 19 Gun 44 | . 8 31 5 Cannon 21 | . . 11 10 Launcher 21 | . 7 10 4 Special . | . . . . Kinetic 42 | . 8 29 5 Thermal 23 | . . 13 10 Explosive 21 | . 7 10 4 Electromagnetic . | . . . . Robot Hit Streak 19 | . 3 19 4 Robot Miss Streak 2 | . 1 2 2 Penetration Max . | . . . . Secondary Targets . | . . . . Shots Hit Robots 50 | . 5 37 8 Core Hits 46 | . 19 17 10 Critical Hits . | . . . . Critical Kills . | . . . . Critical Parts Destroyed . | . . . . Melee Attacks 2 | . . 2 . Impact 2 | . . 2 . Slashing . | . . . . Piercing . | . . . . Sneak Attacks 1 | . . 1 . Combat Hostiles . | . . . . Follow-up Attacks . | . . . . Damage Inflicted 2220 | . 748 953 519 Guns 476 | . 55 385 36 Cannons 321 | . . 171 150 Explosions 1345 | . 693 319 333 Melee 78 | . . 78 . Ramming . | . . . . Kinetic 474 | . 55 383 36 Thermal 581 | . 258 173 150 Explosive 1087 | . 435 319 333 Electromagnetic . | . . . . Impact 78 | . . 78 . Slashing . | . . . . Piercing . | . . . . Highest Corruption . | . . . . Average Corruption . | . . . . Corruption Purged . | . . . . Overload Shots . | . . . . Overflow Damage 120 | . 57 63 . Projectiles . | . . . . Explosions 66 | . 57 9 . Melee 54 | . . 54 . Knockbacks 3 | . . 3 . Impact 1 | . . 1 . Kinetic 2 | . . 2 . Secondary . | . . . . Self-Inflicted Damage 204 | . 105 . 99 Shots 6 | . 3 . 3 Rammed . | . . . . Targets Rammed . | . . . . Kicked . | . . . . Crushed . | . . . . Highest Temperature 248 | . 22 248 178 Average Temperature 69 | . 8 81 65 Received Heat Transfer 474 | . 66 360 48 Siege Activations . | . . . . Robots Corrupted . | . . . . Combat Hostiles . | . . . . Parts Fried . | . . . . Impact Corruptions 1 | . . 1 . Robots Melted . | . . . . Combat Hostiles . | . . . . Parts Melted 2 | . . 2 . Heat Transferred 829 | . 200 407 222 Parts Sabotaged . | . . . . Parts Stolen . | . . . . Parts Stripped . | . . . . Power Chain Reactions . | . . . . Missiles Intercepted . | . . . . Alert | -11 -10 -9 -9 ------- Run | Scr Mat Mat Min Peak Influence 264 | . 264 263 212 Average Influence 119 | . 147 97 184 Maximum Alert Level 1 | . 1 1 1 Low Security (%) 81 | 100 75 92 37 Level 1 18 | . 24 7 62 Level 2 . | . . . . Level 3 . | . . . . Level 4 . | . . . . Level 5 . | . . . . High Security . | . . . . Max Security . | . . . . Squads Dispatched 3 | . 1 2 . Investigation 1 | . . 1 . Extermination . | . . . . Reinforcement 2 | . 1 1 . Assault . | . . . . Garrison . | . . . . Intercept . | . . . . Construction Impeded . | . . . . Haulers Reinforced . | . . . . Stealth | -11 -10 -9 -9 --------- Run | Scr Mat Mat Min Distress Signals 3 | . 3 . . Communications Jammed . | . . . . Distress Signals . | . . . . Times Spotted 35 | . 11 18 6 Peak Tracking Total 5 | . 5 4 3 Tactical Retreats . | . . . . Traps | -11 -10 -9 -9 ------- Run | Scr Mat Mat Min Traps Triggered 1 | . 1 . . Indirectly . | . . . . Trap Hack Attempts . | . . . . Triggered . | . . . . Disarmed . | . . . . Reprogrammed . | . . . . Reused . | . . . . Traps Extracted . | . . . . Installed . | . . . . Triggered . | . . . . Machines | -11 -10 -9 -9 ---------- Run | Scr Mat Mat Min Machines Disabled 7 | . 3 1 3 Max in Single Turn 2 | . 2 1 1 Machines Sabotaged . | . . . . Garrisons Compromised . | . . . . Overloaded Fab Kills . | . . . . Fab Network Shutdowns . | . . . . Hacking | -11 -10 -9 -9 --------- Run | Scr Mat Mat Min Machines Accessed 6 | . 2 4 . Terminals 5 | . 2 3 . Fabricators . | . . . . Repair Stations . | . . . . Recycling Units . | . . . . Scanalyzers 1 | . . 1 . Garrison Access . | . . . . Total Hacks 14 | . 5 9 . Successful 10 | . 5 5 . Failed 4 | . . 4 . Catastrophic 2 | . . 2 . Database Lockouts . | . . . . Manual 10 | . 4 6 . Terminals 12 | . 5 7 . Fabricators . | . . . . Repair Stations . | . . . . Recycling Units . | . . . . Scanalyzers 2 | . . 2 . Garrison Access . | . . . . Terminal Hacks 2 | . 1 1 . Record 2 | . 1 1 . Fabricator Hacks . | . . . . Repair Station Hacks . | . . . . Recycling Unit Hacks . | . . . . Scanalyzer 2 | . . 2 . Insert Component 1 | . . 1 . Analyze 1 | . . 1 . Garrison Access Hacks . | . . . . Unauthorized Hacks 16 | . 8 8 . Terminals 6 | . 4 2 . Track 2 | . 1 1 . Assimilate 1 | . 1 . . Botnet 3 | . 2 1 . Fabricators . | . . . . Repair Stations . | . . . . Recycling Units . | . . . . Scanalyzers . | . . . . Garrison Access . | . . . . Data Cores Recovered . | . . . . Used . | . . . . Hacking Detections 5 | . 1 4 . Full Trace Events 1 | . . 1 . Feedback Events . | . . . . Feedback Blocked . | . . . . Robot Schematics Acquired . | . . . . Robots Built . | . . . . Matter . | . . . . Time . | . . . . Total Robot Build Rating . | . . . . Part Schematics Acquired 1 | . . 1 . Parts Built . | . . . . Matter . | . . . . Time . | . . . . Total Part Build Rating . | . . . . Parts Repaired . | . . . . Time . | . . . . Parts Recycled . | . . . . Recycled Matter . | . . . . Retrieved Matter . | . . . . Retrieved Components . | . . . . Parts Scanalyzed 1 | . . 1 . Part Schematics Acquired 1 | . . 1 . Parts Damaged . | . . . . Bothacking | -11 -10 -9 -9 ------------ Run | Scr Mat Mat Min Used RIF Installer . | . . . . Robots Hacked . | . . . . Non-combat . | . . . . Combat . | . . . . Robot Hacks Applied . | . . . . Relay Couplers Released . | . . . . Robots Rewired . | . . . . Allies Hacked . | . . . . Hacks Repelled . | . . . . Allies | -11 -10 -9 -9 -------- Run | Scr Mat Mat Min Total Allies . | . . . . Largest Group . | . . . . Highest-Rated Group . | . . . . Highest-Rated Ally . | . . . . Total Orders . | . . . . Ally Attacks . | . . . . Total Damage . | . . . . Kills . | . . . . Allies Corrupted . | . . . . Allies Melted . | . . . . Intel | -11 -10 -9 -9 ------- Run | Scr Mat Mat Min Robot Analysis Total . | . . . . Derelict Logs Recovered . | . . . . Drone Launches . | . . . . Drone Recoveries . | . . . . Exploration | -11 -10 -9 -9 ------------- Run | Scr Mat Mat Min Turns Passed 1206 | 54 431 602 119 Spaces Moved 648 | 34 252 307 55 Core 8 | 4 . 4 . Treads 7 | . . . 7 Legs 633 | 30 252 303 48 Wheels . | . . . . Hover . | . . . . Flight . | . . . . Fastest Speed 50 | 50 120 120 150 Average Speed 147 | 115 149 148 151 Slowest Speed 350 | 150 210 350 160 Overloaded Moves . | . . . . Propulsion Burnouts . | . . . . Robots Hopped . | . . . . Cave-ins Triggered . | . . . . Exploration Rate (%) 23 | 3 46 32 13 Regions Visited 3 Branch Regions 1 Pre-discovered Areas . | . . . . Known Exits Taken . | . . . . Unknown Exits Taken 3 | 1 1 1 . Scrap Searched . | . . . . Spaces Dug . | . . . . Terrain Destroyed 175 | . 78 64 33 Melee . | . . . . Projectile 3 | . . . 3 AOE 172 | . 78 64 30 Actions | -11 -10 -9 -9 --------- Run | Scr Mat Mat Min Total 814 | 46 293 402 73 Wait 7 | . 3 4 . Move 645 | 33 251 306 55 Hop . | . . . . Pick Up 27 | 5 11 11 . Fast Attach 21 | 7 4 10 . Attach 10 | . . 5 5 Detach 2 | 1 . 1 . Swap 9 | . 2 5 2 Drop 24 | . 9 14 1 Fire 67 | . 13 44 10 Melee 2 | . . 2 . Ram . | . . . . Kick . | . . . . Crush . | . . . . Escape Stasis . | . . . . Rewire . | . . . . Trap . | . . . . Miscellaneous . | . . . . Route ------- -11/Scrapyard -10/Materials (discovered 2 exits: *Mat / [*Min]) -9/Materials -9/Mines (discovered 1 exit: [*Mat]) History --------- Turn | Location | Event 24 | -11/Scrapyard | Discovered new exit (range 16) 55 | -11/Scrapyard | Entered Materials 301 | -10/Materials | Build established: Mutant 328 | -10/Materials | Discovered new exit (range 15) 407 | -10/Materials | Discovered new exit (range 4) 486 | -10/Materials | Entered another Materials area 486 | -9/Materials | Evolved 2 slots: Propulsion x1, Utility x1 914 | -9/Materials | Core integrity fell below 50% 932 | -9/Materials | Lost 7 parts (1p3n1u2w) 1036 | -9/Materials | Discovered new exit (range 13) 1088 | -9/Materials | Entered Mines 1146 | -9/Mines | Discovered new exit (range 3) 1177 | -9/Mines | Assembled infested the area 1193 | -9/Mines | Core integrity fell below 20% 1207 | -9/Mines | Destroyed by D-53 Grenadier with Mini Grenade Launcher Last Messages --------------- 01193_ The unstable cave ceiling collapses. 01193_ U-05 Engineer lays Concrete. 01193_ Hvy. Particle Cannon destroyed. 01194_ U-05 Engineer lays Concrete. 01195_ U-05 Engineer builds a Wall. 01196_ The unstable cave ceiling collapses. 01196_ K-01 Serf collects debris. 01196_ U-05 Engineer destroyed. 01198_ The unstable cave ceiling collapses. 01198_ Laser Drill disabled. 01198_ Minigun destroyed. 01199_ The unstable cave ceiling collapses. 01199_ U-05 Engineer destroyed. 01199_ K-01 Serf collects debris. 01200_ The unstable cave ceiling collapses. 01200_ K-01 Serf collects debris. 01203_ The unstable cave ceiling collapses. 01205_ K-01 Serf destroyed. 01206_ The unstable cave ceiling collapses. 01206_ K-01 Serf collects debris. Map ----- +----------------------------------------------------+ | ?????????????????????????????????? | | ?????????????????????????????????? | | ?????????????????????????????????? | | ?????????????????????????????????? | | ?????????????????????????????????? | | ?????????????????????????????????? | | ?????????????????????????????????? | | ?????????????????????????????????? | | ?????????????????????????????????? | | ?????????????????????????????????? | | ?????????????????????????????????? | | ?????????????????????????????????? | | ?????????????????????????????????? | | ?????????????????????????????????? | | ?###########?????????????????????? | | ?# #?????????????????????? | | ?# #?????????????????????? | | ?# """ """ #?????????????????????? | | ## """ """ #?????????????????????? | | ?; """ " " #?#######?????????????? | | ?# ### ##????????????? | | ?# ## ##???????????? | | ?# t "" #???????????? | | ?# < " k # #???????????? | | ?# # #???????????? | | ?#### ## @ d #???????????? | | ????# ## d #???????????? | | ????# ## ##???????????? | | ???## ## ! ##????????????? | | ???# =% # =#?????????????? | | ???# # ! #?????????????? | | ???## " #### #?????????????? | | ???## #??# #?????????????? | | ???## #??# #?????????????? | | ???# ##?# #?????????????? | | ???## #?# #?????????????? | | ????# ##?# #?????????????? | | ????## # # #??# #?????????????? | | ?????# # #?? #?????????????? | | ?????###### ##?? #?????????????? | | ??????????# #??? ??????????????? | | ??????????# #??? ??????????????? | | ??????????# #??? ??????????????? | | ??????????# #??? ##??????????????? | | ??????????# #????????????????????? | | ?????????? #????????????????????? | | ??????????# ?????????????????????? | | ??????????? ?????????????????????? | | ??????????? ?????????????????????? | | ??????????? ?????????????????????? | +----------------------------------------------------+ Best States ------------- Heat Dissipation 28 Energy Generation 12 Energy Capacity 565 Matter Stores 300 Matter Capacity 300 Sight Range 16 Terrain Scan Density 10 Armor Coverage 225 Evasion (%) 40 Targeting Accuracy 14 Recoil Reduction 2 Item Schematics ----------------- Particle Gun | -9/Materials | Scanalyzed Robot Schematics ------------------ None Fabricated ------------ Nothing Alien Tech Used ----------------- None Achievements -------------- None Challenges ------------ None Game ------ Seed WeldingSalvageCoupler Manual? 0 Play Time 00:22:53 Cumulative 5.9 hours Start 2020.03.16 @ 19:35:18 End 2020.03.16 @ 19:59:23 Sessions 1 Manual Loads 0 Difficulty Rogue Special Mode None Game No. 13 Rogue 13 Adventurer 0 Explorer 0 Win Type - Total 0 Types 0/0/0/0/0/0/0 Lore% 12 Gallery% 12 Achievement% 13 Wizard Run 0 Options --------- ASCII 0 Keyboard 0 Movement Mouse Keybinds 0 Fullscreen 1 Font 24/Proggy Map View 76x50 Tactical HUD 1 Map Filters NONE Filters NONE Steam 1 RUN: 1ce76873-be69-41b4-9453-56507d08e232